[Event "Israeli Championship 2022"]
[Site "Yosiah Arad"]
[Date "2022.12.08"]
[Round "4.2"]
[White "Boruchovsky, Avital"]
[Black "Postny, Evgeny"]
[Result "1-0"]
[ECO "D58"]
[WhiteElo "2552"]
[BlackElo "2588"]
[Annotator "TA"]
[PlyCount "115"]
[EventDate "2022.12.05"]
[EventType "swiss"]
[EventCountry "ISR"]
[SourceTitle "playchess.com"]
[Source "ChessBase"]
[SourceQuality "1"]
[TimeControl "40/5400+30:1800+30"]

{[%evp 24,115,0,-6,0,-14,0,-10,22,18,16,15,17,30,60,53,47,43,62,-19,10,12,12,11,8,8,12,12,31,19,44,47,106,128,122,37,104,81,72,43,51,60,221,260,263,258,256,244,264,270,261,250,227,239,235,227,316,324,312,308,370,326,534,536,702,597,556,545,479,566,502,376,565,550,680,433,416,400,1123,1108,1858,1629,29986,29987,29987,29988,29988,29989,29989,29988,29988,29986,29986,12847]} 1. d4 {[%emt 0:00:05]} d5 {[%emt 0:00:17]} 2. c4 {[%emt 0:00:06]} e6 {[%emt 0:00:06]} 3. Nf3 {[%emt 0:00:44]} Nf6 {[%emt 0:00:11]} 4. Nc3 {[%emt 0:00:24]} Be7 {[%emt 0:00:13]} 5. Bg5 {[%emt 0:01:13]} h6 {[%emt 0:00:18]} 6. Bh4 {[%emt 0:01:32]} O-O {[%emt 0:00:09]} 7. e3 {[%emt 0:00:52]} b6 {[%emt 0:00:26]} 8. Bxf6 {[%emt 0:09:29]} Bxf6 {[%emt 0:00:23]} 9. cxd5 {[%emt 0:00:02]} exd5 {[%emt 0:00:06]} 10. Bd3 {[%emt 0:00:07]} Be6 {[%emt 0:05:21]} 11. Rc1 {[%emt 0:07:38]} c5 {[%emt 0:03:10]} 12. dxc5 $5 {[%emt 0:15:29][%mdl 4] An interesting side line.} bxc5 {[%emt 0:00:27]} 13. O-O {[%emt 0:00:04]} Nc6 {[%emt 0:08:55] [#] D58: Queen's Gambit Declined: Tartakower Defence.} 14. Bb1 $146 {[%emt 0:03:51]} ({Predecessor:} 14. Na4 c4 15. Bb1 Qa5 16. b3 Rfd8 17. Qc2 g6 18. Qd2 Qb5 19. Nc3 Qb6 20. Na4 Qb5 21. Nc3 {0-1 (37) Broschwitz,M (2086)-Haizmann,T (2129) Bayern 2011}) 14... c4 {[%emt 0:20:36]} 15. b3 {[%emt 0:06:19]} d4 {[%emt 0:16:14] The position is equal.} 16. Ne4 {[%emt 0:06:40]} dxe3 {[%emt 0:02:06]} 17. Nxf6+ {[%emt 0:00:09]} Qxf6 {[%emt 0:00:07]} 18. fxe3 {[%emt 0:00:16]} Rfd8 {[%emt 0:14:40] Against Nd4} 19. Qc2 {[%emt 0:03:13]} g6 {[%emt 0:00:20]} 20. bxc4 {[%emt 0:01:24]} Rac8 {[%emt 0:02:02]} 21. Qa4 {[%emt 0:03:37]} (21. Qe4 $14) 21... Qe7 {[%emt 0:04:11][%mdl 1024] Black has compensation.} (21... Ne5 $5 {[%cal Re6c4]} 22. c5 Nxf3+ 23. Rxf3 Qe5 $11) 22. c5 {[%emt 0:08:25]} Bd5 {[%emt 0:00:57]} 23. e4 {[%emt 0:00:15]} Be6 {[%emt 0:00:08]} 24. h3 {[%emt 0:04:25]} Qc7 {[%emt 0:03:52]} 25. Kh1 {[%emt 0:05:29]} Ne5 {[%emt 0:11:30]} 26. Nd4 {[%emt 0:02:13]} Bd7 {[%emt 0:00:22]} 27. Qb4 {[%emt 0:02:49]} Bc6 {[%emt 0:04:21]} ({Black should try} 27... Bxh3 $14 28. gxh3 Qd7) 28. Qc3 $16 {[%emt 0:01:11] White is more active.} Qe7 {[%emt 0:00:07]} 29. a3 {[%emt 0:02:33]} (29. Bc2 $16) 29... Kh7 {[%emt 0:00:19]} (29... Bb7 $14) 30. Qe3 {[%emt 0:04:52]} Qg5 {[%emt 0:01:15]} 31. Qf2 {[%emt 0:02:22]} Rd7 {[%emt 0:00:35]} 32. Rc3 {[%emt 0:00:44]} Rcd8 $2 {[%emt 0:01:09] This costs Black the game.} ({Black should play} 32... Rdc7 $14) 33. Nxc6 $18 {[%emt 0:01:29]} Nxc6 {[%emt 0:00:04] [#]} 34. Ba2 $1 {[%emt 0:00:07]} Ne5 {[%emt 0:01:23]} 35. Bd5 {[%emt 0:00:09]} Rc7 {[%emt 0:00:42]} 36. c6 {[%emt 0:00:30]} Rb8 {[%emt 0:00:23]} 37. Qc2 {[%emt 0:01:41]} Qe7 {[%emt 0:00:46]} 38. Rb3 {[%emt 0:00:26]} Rxb3 {[%emt 0:00:29]} 39. Qxb3 {[%emt 0:00:03]} Kg7 {[%emt 0:00:21]} 40. Qc3 {[%emt 0:00:47]} Qd6 {[%emt 0:00:39]} 41. Rb1 {[%emt 0:33:19][%cal Bf1b1,Bb1b7,Bb7a7][%mdl 32]} Qf6 {[%emt 0:07:19]} 42. Rb7 {[%emt 0:00:00]} Rc8 {[%emt 0:02:58]} (42... Qd6 43. a4 Kg8) 43. Rxa7 {[%emt 0:00:00]} Qf1+ {[%emt 0:04:28]} 44. Kh2 {[%emt 0:00:00]} Qf6 {[%emt 0:00:07][%cal Oe5g4] Strongly threatening ...Ng4+!} 45. Kg1 {[%emt 0:00:00]} h5 {[%emt 0:01:14]} 46. Rb7 {[%emt 0:00:00]} g5 {[%emt 0:01:44]} 47. Qg3 {[%emt 0:00:00]} Kh6 {[%emt 0:03:09]} (47... Ra8 {is a better defense.} 48. Qe3 Rc8) 48. Qf2 {[%emt 0:00:00]} Qd6 {[%emt 0:13:51]} 49. Qf5 {[%emt 0:00:00]} (49. Bxf7 Rxc6 50. Rb1 Nxf7 $14) 49... Ra8 {[%emt 0:00:00]} 50. c7 {[%emt 0:00:00]} (50. Bxf7 Rxa3 51. Qe6+ Qxe6 52. Bxe6 Nxc6 $18) 50... Qc5+ {[%emt 0:00:00]} (50... Rc8 $142 51. Bxf7 (51. Qxc8 Qc5+ 52. Kf1 Qc1+ 53. Kf2 Nd3+ 54. Kf3 Ne5+ 55. Kf2 Nd3+ 56. Kf3 Ne5+ 57. Kf2 $11) 51... Rxc7 52. Rxc7 Qxc7 53. Qf6+ Kh7 54. Bxh5 Qc5+ 55. Kf1 Qc4+ 56. Be2 Qc1+ 57. Kf2 Qc5+ 58. Kg3 Ng6) 51. Qf2 {[%emt 0:00:00]} Qc1+ {[%emt 0:00:00]} 52. Kh2 {[%emt 0:00:00] Hoping for Rb6+.} Rxa3 {[%emt 0:00:00]} 53. Rb6+ {[%emt 0:00:00] White mates.} Ng6 {[%emt 0:00:00] [#]} 54. Rxg6+ $1 {[%emt 0:00:00][%mdl 512]} Kxg6 {[%emt 0:00:00]} 55. Qxf7+ {[%emt 0:00:00]} Kh6 {[%emt 0:00:00]} 56. Qe6+ {[%emt 0:00:42]} Kg7 {[%emt 0:00:00]} 57. Qd7+ {[%emt 0:00:02]} (57. c8=B $2 Qf4+ 58. g3 Qxg3+ 59. Kh1 Ra1#) 57... Kh6 {[%emt 0:00:00]} 58. Qc6+ {[%emt 0:00:06] Weighted Error Value: White=0.19 (very precise) /Black=0.39} (58. c8=B $2 {leads to mate.} Qf4+ 59. g3 Qxg3+ 60. Kh1 Ra1#) (58. Qd6+ $142 Kh7 59. Qe7+ Kh6 60. Qf8+ Kg6 61. Bf7+ (61. c8=B {is a self mate.} Qc7+ 62. e5 Qxe5+ 63. Kg1 Ra1+ 64. Kf2 Qb2+ 65. Kf3 Rf1+ 66. Ke4 Re1+ 67. Kd3 Rd1+ 68. Kc4 Rc1+ 69. Kd3 Qc3+ 70. Ke2 Re1+ 71. Kf2 Qe3#) 61... Kf6 62. Bc4+ (62. c8=B $2 {gets mated.} Qf4+ 63. g3 Qxg3+ 64. Kh1 Ra1#) 62... Ke5 63. Qc5+ Kf6 64. Qf5+ (64. c8=Q Qf4+ 65. Kh1 Ra1+ $11) 64... Kg7 65. Qf7+ Kh6 66. Qf6+ Kh7 67. c8=Q) 1-0

[Event "Israeli Championship 2022"]
[Site "Yosiah Arad"]
[Date "2022.12.08"]
[Round "4.3"]
[White "Kochavi, Ori"]
[Black "Gorodetzky, David"]
[Result "1-0"]
[ECO "C78"]
[WhiteElo "2326"]
[BlackElo "2495"]
[Annotator "TA"]
[PlyCount "99"]
[EventDate "2022.12.05"]
[EventType "swiss"]
[EventCountry "ISR"]
[SourceTitle "playchess.com"]
[Source "ChessBase"]
[SourceQuality "1"]
[TimeControl "40/5400+30:1800+30"]

{[%evp 13,99,36,44,20,40,29,14,20,22,20,33,30,43,8,4,-30,-5,-21,0,0,0,0,0,0,9,0,8,-10,-9,-6,0,-7,-16,-67,-58,-64,-61,-58,-54,-56,0,0,0,0,0,-6,-10,-15,-12,-42,-42,-56,-14,-37,-36,-35,0,0,0,0,0,0,0,0,0,0,0,0,0,0,0,0,0,0,0,0,108,99,385,359,604,593,735,738,29981,29982,29979,29976]} 1. e4 {[%emt 0:00:31]} e5 {[%emt 0:00:02]} 2. Nf3 {[%emt 0:00:02]} Nc6 {[%emt 0:00:05]} 3. Bb5 {[%emt 0:00:02]} a6 {[%emt 0:00:07]} 4. Ba4 {[%emt 0:00:03]} Nf6 {[%emt 0:00:15]} 5. O-O {[%emt 0:00:05]} Bc5 {[%emt 0:01:13]} 6. c3 {[%emt 0:00:21]} O-O {[%emt 0:02:52]} 7. d4 {[%emt 0:00:02]} Ba7 {[%emt 0:02:06]} 8. Re1 {[%emt 0:00:35] C78: Ruy Lopez: Archangelsk and Möller Defences.} d6 {[%emt 0:12:43]} 9. h3 {[%emt 0:00:05]} b5 {[%emt 0:16:59]} 10. Bc2 {[%emt 0:00:06] The position is equal.} Re8 {[%emt 0:01:29]} 11. Be3 {[%emt 0:05:58]} h6 {[%emt 0:11:03]} 12. Nbd2 {[%emt 0:02:10]} Bb7 {[%emt 0:03:14]} 13. d5 {[%emt 0:14:54]} Ne7 {[%emt 0:00:40] [#]} 14. c4 $146 {[%emt 0:00:04]} ({Predecessor:} 14. Bxa7 Rxa7 15. a4 Ra8 16. b4 c6 17. dxc6 Bxc6 18. c4 Ng6 19. cxb5 axb5 20. a5 {0-1 (38) Saric,I (2681)-Annaberdiev,M (2515) Konya 2019}) 14... c6 {[%emt 0:02:33]} 15. b3 {[%emt 0:00:35]} cxd5 {[%emt 0:04:11]} 16. cxd5 {[%emt 0:00:06]} Bxe3 {[%emt 0:03:50]} 17. Rxe3 {[%emt 0:00:22]} Nd7 {[%emt 0:00:59]} 18. b4 {[%emt 0:09:42]} f5 {[%emt 0:01:59]} 19. exf5 {[%emt 0:02:41]} Nf6 {[%emt 0:00:37]} 20. Re1 {[%emt 0:15:29]} (20. Ne4 {simplifies} Nxf5 21. Rc3 Nxe4 22. Bxe4 Rf8 23. Rac1) 20... Nexd5 {[%emt 0:07:25]} 21. Ne4 {[%emt 0:01:06]} Kh7 {[%emt 0:06:15] [#] Strongly threatening ...Nxe4.} 22. Qd2 {[%emt 0:01:56]} Rc8 {[%emt 0:01:08]} 23. Bb3 {[%emt 0:05:23]} (23. Rad1 $11) 23... Nxe4 $15 {[%emt 0:00:55]} 24. Rxe4 {[%emt 0:00:04]} Nf4 {[%emt 0:00:17]} 25. Rxf4 {[%emt 0:00:07]} exf4 {[%emt 0:00:11]} 26. Qxf4 {[%emt 0:02:49]} Re4 {[%emt 0:03:10]} (26... Qf6 $15 27. Rd1 Qc3) 27. Qd2 $1 $11 {[%emt 0:00:24]} Qf6 {[%emt 0:05:19][%csl LRa1,LRf5]} 28. Rd1 {[%emt 0:00:04]} d5 {[%emt 0:00:55]} 29. Nd4 {[%emt 0:01:01]} Kh8 {[%emt 0:02:54]} 30. f3 {[%emt 0:01:15]} Re7 {[%emt 0:01:08]} 31. Qf4 {[%emt 0:01:09]} Rce8 {[%emt 0:02:44]} 32. Kh2 {[%emt 0:03:50]} Re5 {[%emt 0:03:30]} 33. Rc1 {[%emt 0:06:14]} Rc8 {[%emt 0:00:23]} 34. Rd1 {[%emt 0:00:05]} Bc6 {[%emt 0:02:35]} 35. g4 {[%emt 0:06:00][%cal Bg2g4,Bg4g5,Bg5f6][%mdl 32]} Bd7 {[%emt 0:00:30]} 36. Kg3 {[%emt 0:00:19]} Rce8 {[%emt 0:01:26]} 37. h4 {[%emt 0:03:16]} Re1 {[%emt 0:00:15]} 38. g5 {[%emt 0:09:33]} Qe7 {[%emt 0:00:30] [#] Threatens to win with ...Rxd1.} 39. f6 {[%emt 0:03:07]} gxf6 {[%emt 0:00:13]} (39... Qxb4 $2 40. fxg7+ (40. gxh6 g5 $11) 40... Kg8 41. gxh6 $18) 40. gxf6 {[%emt 0:00:04]} Qe5 {[%emt 0:00:40]} (40... Qxb4 $2 {leads to mate.} 41. Qxh6+ Kg8 42. Qg7#) (40... Rg8+ $2 41. Kf2 $18) 41. Qxe5 {[%emt 0:32:24] The board is on fire.} R1xe5 {[%emt 0:02:28]} 42. Rc1 {[%emt 0:00:00]} Rf8 {[%emt 0:09:29]} 43. Rc7 {[%emt 0:00:00]} Be8 {[%emt 0:04:41]} 44. Kf4 $1 {[%emt 0:00:00]} Re1 {[%emt 0:05:00]} (44... Rxf6+ $2 45. Kxe5 Rf8 46. Bxd5 $18) (44... Rh5 $11) 45. Kf5 $1 $16 {[%emt 0:00:00] White is much more active.} Rg1 $2 {[%emt 0:02:52][%mdl 8192] Loses the game.} (45... Rf7 $16 46. Rc5 Bd7+ 47. Kg6 Be8 48. Bxd5 (48. Rxd5 Rd7+ 49. Kf5 Rxd5+ 50. Bxd5 Rd1 $11) 48... Rd7+ 49. Kf5 (49. Kxh6 $2 {is the wrong capture.} Rg1 $19) 49... Kh7) 46. Bxd5 $18 {[%emt 0:00:00]} Bg6+ $2 {[%emt 0:04:06]} (46... Rg6 47. f7 Rd6) 47. Ke5 {[%emt 0:00:00]} Re1+ {[%emt 0:01:24]} 48. Be4 {[%emt 0:00:00]} Bf7 {[%emt 0:03:00]} 49. Ne6 {[%emt 0:00:00]} Bxe6 {[%emt 0:00:13]} 50. Kxe6 {[%emt 0:00:00] Weighted Error Value: White=0.08 (flawless) /Black=0.34} 1-0

[Event "Israeli Championship 2022"]
[Site "Yosiah Arad"]
[Date "2022.12.08"]
[Round "4.4"]
[White "Zanan, Evgeny"]
[Black "Yaniv, Yuval"]
[Result "0-1"]
[ECO "B30"]
[WhiteElo "2485"]
[BlackElo "2343"]
[Annotator "TA"]
[PlyCount "70"]
[EventDate "2022.12.05"]
[EventType "swiss"]
[EventCountry "ISR"]
[SourceTitle "playchess.com"]
[Source "ChessBase"]
[SourceQuality "1"]
[TimeControl "40/5400+30:1800+30"]

{[%evp 10,70,12,18,4,-33,-31,-68,-58,-60,-47,-75,-69,-106,-57,-64,-50,-118,-68,-56,-56,-68,-69,-70,-72,-102,-102,-231,-229,-216,-247,-327,-313,-410,-443,-433,-433,-413,-341,-559,-562,-833,-584,-584,-577,-566,-553,-604,-589,-1192,-1177,-1277,-1206,-1401,-1407,-1567,-1376,-1649,-1664,-2969,-2468,-2352,-2031]} 1. e4 {[%emt 0:00:05]} c5 {[%emt 0:00:23]} 2. Nf3 {[%emt 0:00:07]} Nc6 {[%emt 0:00:39]} 3. Nc3 {[%emt 0:00:09]} e6 {[%emt 0:00:38]} 4. Bb5 {[%emt 0:03:13]} Nd4 {[%emt 0:03:14]} 5. O-O {[%emt 0:05:37]} a6 {[%emt 0:00:22]} 6. Bd3 {[%emt 0:00:44]} Nc6 $1 {[%emt 0:00:26] 6...Nc6 scores better than 6...Ne7. B30: Sicilian: 2...Nc6 3 Bb5, lines without ...g6.} 7. Re1 {[%emt 0:01:01]} g5 $1 {[%emt 0:00:49][%cal Bg7g5,Bg5g4][%mdl 32] [#] Threatens to win with ...g4.} 8. Kh1 {[%emt 0:20:20]} g4 {[%emt 0:07:11] Black is slightly better.} 9. Ng1 {[%emt 0:00:08]} h5 {[%emt 0:00:29]} 10. f4 {[%emt 0:19:15] [#]} Bg7 $146 {[%emt 0:06:15]} ({Predecessor:} 10... d6 11. Bf1 Nge7 12. a3 Bg7 13. Rb1 b5 14. b4 cxb4 15. axb4 Bb7 16. Bb2 Kf8 {½-½ (40) Lakos,N (2247)-Polyik,P (2254) Hungary 2018}) 11. Nd5 {[%emt 0:17:36]} Nge7 {[%emt 0:17:28]} ({Black should try} 11... exd5 $17 12. exd5+ Nge7) 12. Nxe7 $15 {[%emt 0:03:48]} Nxe7 {[%emt 0:02:11]} 13. e5 {[%emt 0:09:37]} ({White should play} 13. c3 $15) 13... f5 {[%emt 0:04:07]} (13... Qc7 $17 14. b3 f5) 14. exf6 {[%emt 0:00:55]} Bxf6 {[%emt 0:01:30]} 15. c3 {[%emt 0:04:14]} Qc7 {[%emt 0:04:52]} 16. Bc2 {[%emt 0:00:25]} b5 {[%emt 0:01:21]} (16... Qxf4 17. d4 Qd6 18. Rf1 $16) (16... b6 {is more complex.} 17. f5 Bb7 18. fxe6 O-O-O) 17. d4 {[%emt 0:04:22]} cxd4 {[%emt 0:00:27]} 18. f5 {[%emt 0:01:42] This move loses the game for White.} (18. Ne2 $17 {is a better defense.}) 18... dxc3 $19 {[%emt 0:03:30]} 19. bxc3 {[%emt 0:01:30]} Bb7 {[%emt 0:20:21]} (19... Bxc3 20. Bd2 $17) (19... Qxc3 20. Rb1 Qd4 21. Qe2 $11) 20. fxe6 {[%emt 0:00:48][%cal Oc1f4] Black must now prevent Bf4!} O-O-O {[%emt 0:01:23]} (20... Qxc3 21. Qxd7+ Kf8 22. Qxb7 $18) (20... Bxc3 21. exd7+ Qxd7 22. Bg6+ Kd8 {[#]} 23. Bg5 $1 Bxg2+ 24. Kxg2 Bxe1 25. Bxe7+ Kxe7 26. Qxe1+ Qe6 27. Qb4+ Kf6 28. Re1 $18 (28. Be4 Rae8 $15) (28. Be4 Rae8 $15)) 21. Ba3 {[%emt 0:03:33]} dxe6 {[%emt 0:01:12] Chess con chili.} (21... Qxc3 22. Bxe7 Qxa1 23. Qxa1 (23. Bxd8 Qxd1 24. Rxd1 Rxd8 $17) 23... Bxa1 24. Bxd8 $16 (24. Rxa1 Rde8 $11)) 22. Qe2 {[%emt 0:00:05]} Nd5 {[%emt 0:00:52][%cal Be7d5,Bd5f4,Bf4d3][%mdl 32]} (22... Qxc3 23. Qxe6+ Kb8 24. Bd6+ Ka7 25. Be4 $17) 23. Be4 {[%emt 0:01:48]} Kb8 {[%emt 0:01:16]} (23... Nxc3 24. Bxb7+ Kxb7 25. Qxe6 $17) (23... Bxc3 $2 24. Rac1 Kb8 25. Bb2 $19) 24. Bb2 {[%emt 0:00:46]} (24. Rac1) 24... Nf4 {[%emt 0:02:23] Black is clearly winning.} ({Weaker is} 24... Bxc3 25. Rac1 b4 26. Bxc3 bxc3 27. Rb1 $19) ({Worse is} 24... Nxc3 25. Bxc3 Bxc3 26. Rac1 $19) 25. Qf2 {[%emt 0:00:28]} Bxe4 {[%emt 0:00:43]} ({Not} 25... Bxc3 26. Bxc3 Bxe4 27. Rxe4 $11) 26. Rxe4 {[%emt 0:00:02]} Nd3 {[%emt 0:00:02][%cal Rd3f2]} 27. Qe2 {[%emt 0:00:52]} Nxb2 {[%emt 0:00:47]} 28. Rxe6 {[%emt 0:00:05]} Bxc3 {[%emt 0:02:04] Strongly threatening ...Nd3.} 29. Rc1 {[%emt 0:00:59]} Nd3 {[%emt 0:01:30]} 30. Rf1 {[%emt 0:00:39]} Nf4 {[%emt 0:00:59]} 31. Rxf4 {[%emt 0:00:23]} Qxf4 {[%emt 0:00:15]} 32. Rb6+ {[%emt 0:00:06]} Kc7 {[%emt 0:04:10]} 33. Rxa6 {[%emt 0:00:05]} Qe5 {[%emt 0:00:45] ( -> ...Qxe2)} 34. Qf2 {[%emt 0:00:18]} Bd4 {[%emt 0:00:20]} 35. Qc2+ {[%emt 0:01:23]} Qc5 {[%emt 0:00:21] Weighted Error Value: White=0.94/Black=0.14 (very precise)} 0-1

[Event "Israeli Championship 2022"]
[Site "Yosiah Arad"]
[Date "2022.12.08"]
[Round "4.5"]
[White "Dvoirys, Semen I."]
[Black "Sokolovsky, Yahli"]
[Result "1/2-1/2"]
[ECO "C88"]
[WhiteElo "2461"]
[BlackElo "2414"]
[Annotator "TA"]
[PlyCount "120"]
[EventDate "2022.12.05"]
[EventType "swiss"]
[EventCountry "ISR"]
[SourceTitle "playchess.com"]
[Source "ChessBase"]
[SourceQuality "1"]
[TimeControl "40/5400+30:1800+30"]

{[%evp 17,120,33,37,48,37,40,43,35,35,32,34,35,37,39,37,44,56,52,95,96,96,96,91,93,180,70,68,68,66,47,47,47,198,170,249,258,306,293,305,295,280,280,280,281,288,246,251,232,385,398,398,393,403,394,404,0,404,386,387,392,336,219,195,211,210,64,106,84,292,265,268,289,283,267,320,250,238,147,147,147,171,146,245,62,62,8,8,0,0,0,0,0,0,0,0,0,0,0,0,0,0,0,0,0,0]} 1. e4 {[%emt 0:00:03]} e5 {[%emt 0:00:08]} 2. Nf3 {[%emt 0:00:04]} Nc6 {[%emt 0:00:03]} 3. Bb5 {[%emt 0:00:13]} a6 {[%emt 0:00:04]} 4. Ba4 {[%emt 0:00:05]} Nf6 {[%emt 0:00:05]} 5. O-O {[%emt 0:00:04]} Be7 {[%emt 0:00:05]} 6. Re1 {[%emt 0:00:07]} b5 {[%emt 0:00:03]} 7. Bb3 {[%emt 0:00:04]} O-O {[%emt 0:00:20]} 8. a4 {[%emt 0:00:06]} Bb7 {[%emt 0:00:04]} 9. d3 {[%emt 0:00:10]} d5 {[%emt 0:01:19]} 10. exd5 {[%emt 0:00:31] C88: Closed Ruy Lopez: Anti-Marshall Systems.} (10. axb5 {simplifies} axb5 11. Rxa8 Bxa8 12. exd5 Nxd5 13. Nxe5 Nxe5 14. Rxe5 c5 15. h3) 10... Nxd5 {[%emt 0:00:05]} 11. Nxe5 {[%emt 0:02:18]} (11. axb5 {simplifies} axb5 12. Rxa8 Bxa8 13. Nbd2) 11... Nd4 {[%emt 0:00:20]} 12. c3 {[%emt 0:02:43] White is slightly better.} Nxb3 {[%emt 0:00:07]} 13. Qxb3 {[%emt 0:00:05] [#]} Bg5 $146 {[%emt 0:00:41]} ({Predecessor:} 13... b4 14. d4 Rb8 15. c4 Nf6 16. Be3 Nd7 17. Nd2 Re8 18. Ndf3 Nf8 19. Rad1 h6 {1-0 (38) Csolto,R (2280)-Lukac,R (2127) Slovakia 2013}) 14. Nd2 {[%emt 0:05:16]} (14. axb5 Bxc1 15. bxa6 (15. Rxc1 $2 Nf4 $19) 15... Bxa6 16. Rxc1 Nf4 $11) 14... Bf4 {[%emt 0:01:57]} 15. d4 {[%emt 0:11:31]} Bxe5 {[%emt 0:25:55]} 16. Rxe5 {[%emt 0:00:48]} Nf4 {[%emt 0:00:07]} 17. Nf3 $1 {[%emt 0:00:15]} (17. axb5 axb5 18. Rxa8 Qxa8 $17) 17... Nh3+ {[%emt 0:08:33][%mdl 64]} 18. Kf1 $1 {[%emt 0:00:01]} (18. gxh3 Bxf3 19. Rf5 (19. axb5 Qh4 $11) 19... Bb7 $11) 18... Bxf3 {[%emt 0:04:46][%mdl 64] Remove Defender} 19. gxf3 {[%emt 0:01:31]} Qh4 {[%emt 0:00:54][%csl Gh3][%cal Rh4f2] Prevents Rh5.} 20. Be3 {[%emt 0:00:13]} (20. axb5 $2 Qxf2#) 20... b4 {[%emt 0:22:59]} (20... bxa4 $16 21. Rxa4 (21. Qxa4 Nf4 $16) 21... Nf4) 21. Qd5 {[%emt 0:05:29]} (21. cxb4 Nf4 $16) ({Better is} 21. Qxb4 $18 {And now Qe7 would win.} Nf4 22. Bxf4) 21... Nf4 $1 $14 {[%emt 0:02:21]} 22. Bxf4 {[%emt 0:00:19]} Qxf4 {[%emt 0:00:05]} 23. Kg2 {[%emt 0:05:30]} (23. Rae1 {simplifies} Rab8 24. Kg2 Qd2 25. cxb4 Qxb4 26. b3) 23... Rad8 {[%emt 0:04:02]} 24. Qc5 {[%emt 0:11:34]} (24. Re4 {simplifies} Qxh2+ 25. Kxh2 Rxd5 26. cxb4 f5 27. Re7) 24... f5 $2 {[%emt 0:10:35]} (24... Rd6 $14) 25. Rae1 {[%emt 0:06:10]} h5 {[%emt 0:07:14]} (25... bxc3 $142 26. bxc3 Qg5+ 27. Kh1 Qf4) 26. Qxb4 $18 {[%emt 0:10:40] Active counter play!} (26. cxb4 h4 $14) (26. Qxc7 Rc8 27. Qa5 bxc3) 26... Rd6 {[%emt 0:01:50]} 27. Re6 {[%emt 0:01:10] Prevents Rg6+.} h4 {[%emt 0:03:18][%cal Oh4h3] [#] Strongly threatening ...h3+!} 28. h3 $1 {[%emt 0:02:24]} Rxe6 {[%emt 0:00:38]} 29. Qc4 {[%emt 0:01:55]} (29. Rxe6 $6 Qg5+ 30. Kf1 Qc1+ 31. Re1 Qf4 $18) 29... Rff6 {[%emt 0:01:36]} (29... Qg5+ $2 30. Kf1 $18) 30. Rxe6 {[%emt 0:00:11][%mdl 4096] Endgame KQR-KQR} Kh7 {[%emt 0:00:05]} 31. Re3 {[%emt 0:08:31]} (31. Qxa6 Qg5+ 32. Kf1 Qc1+ 33. Kg2 Qg5+ 34. Kf1 Qc1+ 35. Kg2 Qg5+ $11) 31... Rg6+ {[%emt 0:00:21]} 32. Kf1 {[%emt 0:00:48]} Qg5 $2 {[%emt 0:02:43]} (32... Qh2 {was necessary.}) 33. Ke2 {[%emt 0:01:08]} (33. Qxc7 $2 Qg1+ 34. Ke2 Rg2 $19) 33... Qg1 {[%emt 0:01:08]} 34. Re8 {[%emt 0:05:21]} (34. Qxc7 $2 Rg2 35. Re5 Rxf2+ 36. Ke3 Qf1 $19) 34... Qc1 {[%emt 0:01:17]} 35. Qg8+ {[%emt 0:01:02]} (35. Qxc7 Qxb2+ 36. Kd3 Qxf2 $11) 35... Kh6 {[%emt 0:00:04]} 36. Qh8+ {[%emt 0:00:08]} Kg5 {[%emt 0:00:01]} 37. f4+ $1 {[%emt 0:00:22]} Qxf4 {[%emt 0:00:03]} 38. Re3 {[%emt 0:00:52]} Qd6 {[%emt 0:00:39]} 39. Qe8 {[%emt 0:00:52] Threatens to win with Re5.} c5 {[%emt 0:02:52]} 40. dxc5 {[%emt 0:01:47]} Qxc5 {[%emt 0:00:27]} 41. Qe7+ {[%emt 0:31:27]} ({White should try} 41. Qd8+ $18 Rf6 42. b3) 41... Qxe7 $14 {[%emt 0:00:43]} 42. Rxe7 {[%emt 0:00:00] Rb7 is the strong threat. KR-KR} Rb6 {[%emt 0:03:17] Against Rb7} (42... Kf4 $16 {was called for.}) 43. b4 $18 {[%emt 0:00:00]} ({Much less strong is} 43. Rxg7+ $6 Kf6 44. Ra7 Rxb2+ 45. Ke3 Rb6 $18) 43... Kf6 {[%emt 0:00:07]} 44. Rc7 {[%emt 0:00:00]} g5 {[%emt 0:00:48]} 45. Kf3 {[%emt 0:00:00] Prevents g4+.} Ke6 {[%emt 0:07:52]} 46. Rc5 {[%emt 0:00:00]} Rd6 {[%emt 0:00:19]} 47. b5 {[%emt 0:00:00]} axb5 {[%emt 0:00:18]} 48. axb5 {[%emt 0:00:00]} Rd2 {[%emt 0:04:56]} 49. c4 {[%emt 0:00:00]} Rb2 {[%emt 0:02:12] [#]} (49... Rd3+ $16 50. Kg2 Rb3) 50. Rc6+ $2 {[%emt 0:00:00]} (50. Ke3 $1 $18) 50... Ke5 $14 {[%emt 0:00:05][%cal Og5g4]} 51. b6 {[%emt 0:00:00]} (51. Rg6 $14) 51... g4+ $1 $11 {[%emt 0:02:32] The position is equal.} 52. Kg2 {[%emt 0:00:00]} (52. hxg4 $5 Rb3+ $8 53. Ke2 fxg4 54. c5 $11 (54. Rh6 Rb2+ 55. Kf1 h3 $11)) 52... g3 {[%emt 0:01:47][%cal Of5f4]} 53. Rc5+ {[%emt 0:00:00]} Kd4 {[%emt 0:06:47]} 54. Rb5 {[%emt 0:00:00]} Rxf2+ {[%emt 0:00:05]} 55. Kg1 {[%emt 0:00:00] White threatens b7 and mate.} Ra2 $1 {[%emt 0:00:39]} (55... Kxc4 56. Rb1 Re2 57. b7 $18) 56. b7 {[%emt 0:16:36] Rb1 would kill now.} Ra1+ {[%emt 0:00:04]} 57. Kg2 {[%emt 0:00:05]} Ra2+ {[%emt 0:00:03]} 58. Kf1 {[%emt 0:00:21] White wants to mate with Rb1.} (58. Kg1 $5 Ra1+ $8 59. Kg2 Ra2+ 60. Kh1 (60. Kg1 Ra1+ $11) 60... Ra1+ 61. Kg2 $11) 58... Ra1+ {[%emt 0:00:05]} 59. Ke2 {[%emt 0:00:51]} (59. Kg2 $5 Ra2+ $8 60. Kg1 Ra1+ 61. Kg2 $11) 59... Ra2+ {[%emt 0:00:35]} 60. Kf1 {[%emt 0:00:13] Intending Rb1 and mate.} Ra1+ {[%emt 0:00:08] Black escapes into a draw.   Weighted Error Value: White=0.19 (very precise) /Black=0.25 (precise)} 1/2-1/2